[Event "American Cup Blitz 2024"]
[Site "Saint Louis"]
[Date "2024.03.21"]
[Round "3.7"]
[White "Le, Quang Liem"]
[Black "Hong, Andrew"]
[Result "1-0"]
[ECO "B06"]
[WhiteElo "2731"]
[BlackElo "2542"]
[Annotator "TA"]
[PlyCount "95"]
[EventDate "2024.03.21"]
[EventType "swiss"]
[EventCountry "USA"]
[SourceTitle "playchess.com"]
[Source "ChessBase"]
[SourceQuality "1"]
[TimeControl "180+2"]

{[%evp 26,95,307,309,330,342,355,349,817,801,936,958,973,-66,-41,-170,2297,2320,2985,1339,1348,413,405,407,548,473,549,566,547,547,631,491,484,500,515,480,530,395,695,683,841,818,855,775,998,998,29956,12612,6099,5632,29979,1191,29980,29980,29981,29982,29982,29983,29979,29967,29984,29985,29985,29986,29987,29987,29987,29988,29988,29987,29992,29993]} 1. d4 {[%emt 0:00:01]} d6 {[%emt 0:00:01]} 2. e4 {[%emt 0:00:02]} g6 {[%emt 0:00:02]} 3. Nc3 {[%emt 0:00:03]} Bg7 {[%emt 0:00:02]} 4. Be3 {[%emt 0:00:05]} Nc6 {[%emt 0:00:02]} 5. h3 {[%emt 0:00:23]} e5 {[%emt 0:00:04]} 6. dxe5 {[%emt 0:00:21] B06: Modern Defence.} Nxe5 {[%emt 0:00:03]} 7. Qd2 {[%emt 0:00:06]} h6 $146 {[%emt 0:00:13]} ({Predecessor:} 7... Nf6 8. f4 Nc6 9. O-O-O O-O 10. Nf3 Re8 11. e5 dxe5 12. Qxd8 Rxd8 13. Rxd8+ Nxd8 14. Nxe5 {½-½ Durarbayli,V (2590)-Othman,A (2275) Wch Blitz 8th 2014 (6)}) 8. f4 {[%emt 0:00:04]} Nc6 {[%emt 0:00:01]} 9. O-O-O {[%emt 0:00:03]} Nge7 {[%emt 0:00:01]} 10. g4 {[%emt 0:00:04]} f5 {[%emt 0:00:41]} 11. gxf5 {[%emt 0:00:46]} gxf5 {[%emt 0:00:01]} 12. e5 {[%emt 0:00:01]} Be6 {[%emt 0:00:14]} 13. Nf3 {[%emt 0:00:02]} d5 {[%emt 0:00:36]} (13... dxe5 $2 14. Qg2 $18) (13... Qd7 {was called for.} 14. Rg1 (14. exd6 $18)) 14. Rg1 $18 {[%emt 0:00:02]} Rg8 {[%emt 0:00:06]} 15. Bb5 {[%emt 0:00:04]} Qd7 {[%emt 0:00:31]} 16. Nd4 {[%emt 0:00:07]} O-O-O $2 {[%emt 0:00:03]} (16... a6) 17. Na4 $18 {[%emt 0:00:01]} b6 {[%emt 0:00:10]} 18. Qc3 {[%emt 0:00:07]} Kb7 {[%emt 0:00:02] [#]} 19. Rg6 $2 {[%emt 0:00:02]} (19. Qxc6+ Nxc6 20. Bxc6+ Qxc6 21. Nxc6 Kxc6 $18) (19. Nc5+ $3 $18 {[%mdl 512]} bxc5 20. Qxc5) 19... Nxd4 $1 $15 {[%emt 0:00:30]} 20. Qxd4 {[%emt 0:00:21]} (20. Bxd7 $2 Ne2+ (20... Nxg6 $2 21. Rxd4 Rxd7 22. Nc5+ bxc5 23. Qxc5 $18) 21. Kb1 Nxc3+ 22. Nxc3 Bxd7 $19) ({White must play} 20. Bxd4 $15 c6 (20... Qxb5 21. Rxe6 Bf8 22. b3 $15) 21. Rxe6 Qxe6 22. Be2) 20... c6 $4 {[%emt 0:00:06][%mdl 8192]} (20... Qxb5 $19 21. Rxe6 Nc6 22. Rxc6 Qxc6) 21. Nxb6 $18 {[%emt 0:00:09]} Qc7 {[%emt 0:00:11]} 22. Rxe6 {[%emt 0:00:02]} (22. Ba6+ $142 Kb8 23. Qb4 (23. Rxe6 Bf8 $18)) 22... cxb5 $18 {[%emt 0:00:03]} 23. Qc5 {[%emt 0:00:16]} (23. Rxe7 $142 Qxe7 24. Nxd5) 23... Qxc5 $18 {[%emt 0:00:02]} 24. Bxc5 {[%emt 0:00:02]} Nc6 {[%emt 0:00:02]} 25. Nxd5 {[%emt 0:00:01]} Bf8 {[%emt 0:00:02]} 26. Bxf8 {[%emt 0:00:05]} Rgxf8 {[%emt 0:00:01]} 27. Rxh6 {[%emt 0:00:06]} Rg8 {[%emt 0:00:00]} 28. Rxc6 {[%emt 0:00:04]} Kxc6 {[%emt 0:00:04]} 29. Ne7+ {[%emt 0:00:01]} Kc7 {[%emt 0:00:02]} 30. Nxg8 {[%emt 0:00:01]} (30. Nxf5 Rxd1+ 31. Kxd1 Kd7 $18) 30... Rxg8 {[%emt 0:00:01]} 31. Rd6 {[%emt 0:00:03]} Rg2 $2 {[%emt 0:00:04]} (31... Rg1+ 32. Rd1 Rg6) 32. Rf6 $18 {[%emt 0:00:02]} Rh2 {[%emt 0:00:02]} 33. Rxf5 {[%emt 0:00:01]} Rxh3 {[%emt 0:00:00]} 34. b3 {[%emt 0:00:04]} Kc6 {[%emt 0:00:02]} 35. e6 {[%emt 0:00:03]} b4 {[%emt 0:00:02]} 36. Re5 {[%emt 0:00:02]} Rh8 {[%emt 0:00:01]} 37. e7 {[%emt 0:00:03]} Re8 {[%emt 0:00:01] [#]} 38. c3 {[%emt 0:00:02]} (38. c4 $142 $1 bxc3 (38... Kd7 39. f5) 39. f5 (39. Kc2 Kd7 $18) 39... Kd6 40. f6 Kxe5 41. f7 Rxe7 42. f8=Q (42. f8=R Rg7 $14) 42... Rd7 43. Qc5+ Ke6 44. Qxc3) 38... bxc3 {[%emt 0:00:01]} 39. Kc2 {[%emt 0:00:01]} Kd7 {[%emt 0:00:01]} 40. b4 {[%emt 0:00:02]} Kd6 {[%emt 0:00:06]} 41. Kxc3 {[%emt 0:00:02]} Kd7 {[%emt 0:00:00]} 42. Kb3 {[%emt 0:00:01]} a5 {[%emt 0:00:01]} 43. b5 {[%emt 0:00:02]} a4+ {[%emt 0:00:01]} 44. Kb4 {[%emt 0:00:01]} a3 {[%emt 0:00:00]} 45. f5 {[%emt 0:00:03]} Kd6 46. Re6+ {[%emt 0:00:01]} Kd7 {[%emt 0:00:01]} 47. Re3 {[%emt 0:00:01]} Kd6 {[%emt 0:00:05]} 48. f6 {[%emt 0:00:02]} 1-0

[Event "American Cup Blitz 2024"]
[Site "Saint Louis"]
[Date "2024.03.21"]
[Round "3.8"]
[White "Oparin, Grigoriy"]
[Black "Quesada Perez, Yasser"]
[Result "1/2-1/2"]
[ECO "A09"]
[WhiteElo "2671"]
[BlackElo "2584"]
[Annotator "TA"]
[PlyCount "73"]
[EventDate "2024.03.21"]
[EventType "swiss"]
[EventCountry "USA"]
[SourceTitle "playchess.com"]
[Source "ChessBase"]
[SourceQuality "1"]
[TimeControl "180+2"]

{[%evp 9,73,28,29,19,40,37,22,37,18,6,4,-4,-14,-11,-4,-7,-16,-45,-18,-80,-79,-65,-68,-62,-67,-56,-59,-72,-64,-71,-47,-46,-21,-21,-20,-20,-28,-20,0,0,0,0,0,-4,0,-4,0,0,0,0,0,0,0,0,0,0,0,0,0,0,0,0,0,0,0,0]} 1. d4 {[%emt 0:00:01]} d5 {[%emt 0:00:01]} 2. c4 {[%emt 0:00:01]} dxc4 {[%emt 0:00:03]} 3. Nf3 {[%emt 0:00:01]} Nf6 {[%emt 0:00:02]} 4. e3 {[%emt 0:00:01]} c5 {[%emt 0:00:02]} 5. Bxc4 {[%emt 0:00:02]} cxd4 {[%emt 0:00:02]} 6. exd4 {[%emt 0:00:15]} g6 {[%emt 0:00:02]} 7. O-O {[%emt 0:00:03]} Bg7 {[%emt 0:00:00]} 8. Re1 {[%emt 0:00:04]} O-O {[%emt 0:00:02]} 9. h3 {[%emt 0:00:01] Prevents Bg4.} a6 {[%emt 0:00:05]} 10. Nc3 {[%emt 0:00:08]} b5 {[%emt 0:00:03]} 11. Bb3 {[%emt 0:00:02]} Bb7 {[%emt 0:00:02]} 12. Bg5 {[%emt 0:00:05]} Nc6 {[%emt 0:00:12]} 13. a4 {[%emt 0:00:33]} Na5 {[%emt 0:00:38]} 14. Bxf6 {[%emt 0:00:43]} (14. Bc2 $11 {keeps the balance.}) 14... Bxf6 {[%emt 0:00:02]} 15. Ne4 {[%emt 0:00:02]} Bxe4 {[%emt 0:00:13]} 16. Rxe4 {[%emt 0:00:01]} Nxb3 {[%emt 0:00:06]} 17. Qxb3 {[%emt 0:00:02]} Rb8 {[%emt 0:00:01][%cal Ba8b8,Bb8b4,Bb4d4,Bd4d6][%mdl 32]} 18. Re2 {[%emt 0:00:15]} Qd6 {[%emt 0:00:14]} (18... Bxd4 $2 19. Rd1 $18 (19. Nxd4 Qxd4 20. Rxe7 Qf6 $11)) 19. Ne5 {[%emt 0:00:20]} bxa4 {[%emt 0:00:22]} ({Reject} 19... Qxd4 $6 20. Nc6 Qc5 21. Nxb8 Rxb8 22. Rc2 $14) (19... Kg7 {feels hotter.} 20. Kh1 h5 21. Kg1 bxa4 22. Qxa4 Rb4) 20. Qxa4 {[%emt 0:00:03]} Rb4 {[%emt 0:00:05]} 21. Qxa6 {[%emt 0:00:05]} Rxd4 {[%emt 0:00:08]} (21... Qxd4 22. Nc6 Qb6 23. Nxb4 Qxb4 24. Qa7 $16) 22. Qxd6 {[%emt 0:00:03]} Rxd6 {[%emt 0:00:02]} 23. Ng4 {[%emt 0:00:06]} Bg7 {[%emt 0:00:11] The position is equal.} 24. Rxe7 {[%emt 0:00:04]} h5 {[%emt 0:00:09]} 25. Ne3 {[%emt 0:00:14]} Bxb2 {[%emt 0:00:02]} 26. Rb1 {[%emt 0:00:03]} Bd4 {[%emt 0:00:17]} 27. Re4 {[%emt 0:00:01]} Bxe3 {[%emt 0:00:06]} 28. Rxe3 $11 {[%emt 0:00:01][%mdl 4096] Endgame. KRR-KRR} Rfd8 {[%emt 0:00:02]} 29. h4 {[%emt 0:00:01]} Rd1+ {[%emt 0:00:01]} 30. Rxd1 {[%emt 0:00:01]} Rxd1+ {[%emt 0:00:01] KR-KR} 31. Kh2 {[%emt 0:00:01]} Kg7 {[%emt 0:00:01]} 32. g3 {[%emt 0:00:01]} Rd2 {[%emt 0:00:02]} 33. Kg1 {[%emt 0:00:01]} Kg8 {[%emt 0:00:02]} 34. Kg2 {[%emt 0:00:01]} Kg7 {[%emt 0:00:00]} 35. Kg1 {[%emt 0:00:01]} Kg8 {[%emt 0:00:01]} 36. Kg2 {[%emt 0:00:01]} Kg7 {[%emt 0:00:01]} 37. Kg1 {[%emt 0:00:02] Weighted Error Value: White=0.08 (flawless) /Black=0.05 (flawless) .  Mistake:       	White=1     	---        Inaccurate:     	White=1     	Black=1      OK:         	White=10    	Black=11     Best:        	White=3     	---} 1/2-1/2

[Event "American Cup Blitz 2024"]
[Site "Saint Louis"]
[Date "2024.03.21"]
[Round "3.9"]
[White "Quesada Perez, Yuniesky"]
[Black "Swiercz, Dariusz"]
[Result "1-0"]
[ECO "C54"]
[WhiteElo "2591"]
[BlackElo "2612"]
[Annotator "TA"]
[PlyCount "131"]
[EventDate "2024.03.21"]
[EventType "swiss"]
[EventCountry "USA"]
[SourceTitle "playchess.com"]
[Source "ChessBase"]
[SourceQuality "1"]
[TimeControl "180+2"]

{[%evp 59,131,0,0,-29,-29,-47,158,177,215,181,203,122,151,163,139,95,566,583,509,518,808,717,825,816,758,802,802,735,922,912,1158,856,2207,2152,7913,11296,6287,6214,5293,856,822,797,726,748,737,672,737,707,604,0,625,602,4019,2610,4223,2189,6070,5393,29951,10941,1960,4942,29978,29979,29979,0,29959,4134,1913,2270,5102,1372,29986,29987]} 1. e4 {[%emt 0:00:02]} e5 {[%emt 0:00:01]} 2. Nf3 {[%emt 0:00:02]} Nc6 {[%emt 0:00:01]} 3. Bc4 {[%emt 0:00:04]} Nf6 {[%emt 0:00:03]} 4. d3 {[%emt 0:00:02]} Bc5 {[%emt 0:00:05]} 5. c3 {[%emt 0:00:03]} d6 {[%emt 0:00:03]} 6. Bg5 {[%emt 0:00:06]} h6 {[%emt 0:00:03]} 7. Bh4 {[%emt 0:00:01]} a6 {[%emt 0:00:02]} 8. a4 {[%emt 0:00:04] C54: Giuoco Piano: 4 c3 Nf6, main lines with 5 d4 and 5 d3.} Ba7 {[%emt 0:00:02]} 9. Nbd2 {[%emt 0:00:02]} g5 {[%emt 0:00:07]} 10. Bg3 {[%emt 0:00:01]} Qe7 {[%emt 0:00:01]} 11. b4 {[%emt 0:00:08]} Nh7 {[%emt 0:00:19]} 12. O-O {[%emt 0:00:08]} h5 {[%emt 0:00:03]} 13. h4 {[%emt 0:00:02]} g4 {[%emt 0:00:06]} 14. Ne1 {[%emt 0:00:11]} Nf8 {[%emt 0:00:07]} 15. b5 {[%emt 0:00:12]} Nd8 {[%emt 0:00:12]} 16. d4 {[%emt 0:00:06]} Ng6 {[%emt 0:00:01]} 17. dxe5 $5 $146 {[%emt 0:00:31][%mdl 8] An interesting novelty.} ({Predecessor:} 17. Nc2 Nxh4 18. f4 gxf3 19. Bxh4 Qxh4 20. Qxf3 Rh7 21. bxa6 bxa6 22. Rab1 Rg7 23. Rf2 {½-½ Chigaev,M (2632)-Nakamura,H (2768) Titled Tuesday intern op 10th Jan Early blitz 2023 (7)}) 17... dxe5 {[%emt 0:00:11]} 18. Nd3 {[%emt 0:00:02]} O-O {[%emt 0:00:43]} 19. Kh1 {[%emt 0:00:22]} Ne6 {[%emt 0:00:04]} 20. bxa6 {[%emt 0:00:47]} bxa6 {[%emt 0:00:07]} 21. Bd5 {[%emt 0:00:11]} Rb8 {[%emt 0:00:04]} 22. Nc4 {[%emt 0:00:04]} f6 {[%emt 0:01:09]} 23. Nb4 {[%emt 0:00:06]} Rxb4 {[%emt 0:00:03]} 24. cxb4 {[%emt 0:00:02]} Kg7 {[%emt 0:00:01]} 25. Ne3 {[%emt 0:00:11]} Nd4 {[%emt 0:00:05]} 26. Rc1 {[%emt 0:00:03]} Rd8 {[%emt 0:00:04]} 27. Qd3 {[%emt 0:00:09]} c6 {[%emt 0:00:02]} 28. Bc4 {[%emt 0:00:03]} Nf4 {[%emt 0:00:03]} 29. Qc3 {[%emt 0:00:02]} Nde2 {[%emt 0:00:01]} 30. Bxe2 {[%emt 0:00:03]} Nxe2 {[%emt 0:00:01]} 31. Qa3 {[%emt 0:00:06]} Nxc1 {[%emt 0:00:05]} 32. Rxc1 {[%emt 0:00:01]} Qe6 $2 {[%emt 0:00:03]} (32... a5 $1 $15 {keeps the upper hand.} 33. Rxc6 axb4) 33. Nf5+ $16 {[%emt 0:00:02]} Kh7 {[%emt 0:00:01]} 34. Qc3 {[%emt 0:00:02]} Bb7 {[%emt 0:00:01]} 35. Qc2 {[%emt 0:00:04]} Rd7 {[%emt 0:00:03]} 36. Rd1 {[%emt 0:00:01]} Bc8 {[%emt 0:00:03]} 37. Rxd7+ {[%emt 0:00:03]} Qxd7 $4 {[%emt 0:00:02][%mdl 8192]} (37... Bxd7 $16 38. Kh2 Qf7) 38. Qc1 $18 {[%emt 0:00:02]} Kg8 {[%emt 0:00:01] [#]} 39. Qh6 $1 {[%emt 0:00:01]} Qf7 {[%emt 0:00:02]} (39... Qd1+ $142 40. Kh2 Bxf5 41. exf5 Qd8 42. Qxh5 Bd4 43. Qxg4+ Kh7) 40. Nd6 $18 {[%emt 0:00:02]} Qe6 {[%emt 0:00:02]} 41. Qg6+ {[%emt 0:00:01]} Kf8 {[%emt 0:00:01]} 42. Nxc8 {[%emt 0:00:04]} Bd4 {[%emt 0:00:05]} 43. Qh6+ {[%emt 0:00:02]} Ke8 {[%emt 0:00:00]} 44. Qxh5+ {[%emt 0:00:04]} Kd7 {[%emt 0:00:01]} 45. Qh8 {[%emt 0:00:03]} Qc4 {[%emt 0:00:04]} 46. h5 {[%emt 0:00:01]} Qf1+ {[%emt 0:00:01]} 47. Kh2 {[%emt 0:00:01]} Bxf2 {[%emt 0:00:00]} 48. Qg7+ {[%emt 0:00:02]} (48. Qxf6 $2 Qg1#) 48... Kxc8 {[%emt 0:00:02]} 49. Qf8+ {[%emt 0:00:01]} (49. Qxf6 $2 Qg1#) (49. Bxf2 $142 Qxf2 50. Qxg4+ Kb7 51. h6) 49... Kb7 {[%emt 0:00:01]} 50. Qe7+ {[%emt 0:00:03]} (50. Qxf6 $2 Qg1#) 50... Kb8 {[%emt 0:00:04]} 51. Qd8+ {[%emt 0:00:02]} (51. Qxf6 $2 Qg1#) 51... Kb7 {[%emt 0:00:00]} 52. Bxf2 {[%emt 0:00:03]} (52. Qxf6 $2 Qg1#) 52... Qxf2 {[%emt 0:00:02]} 53. Qe7+ {[%emt 0:00:02]} Kb8 {[%emt 0:00:02]} 54. Qd8+ Kb7 55. Qd7+ {[%emt 0:00:02]} Kb8 {[%emt 0:00:01]} 56. Qxg4 {[%emt 0:00:01]} ({Weaker is} 56. Qxc6 Qh4+ 57. Kg1 Qe1+ 58. Kh2 Qh4+ 59. Kg1 Qe1+ 60. Kh2 Qh4+ $11) 56... Qe3 {[%emt 0:00:03]} 57. Qg8+ {[%emt 0:00:02]} Kb7 {[%emt 0:00:01]} 58. Qg7+ {[%emt 0:00:02]} Kb6 {[%emt 0:00:02]} 59. Qxf6 {[%emt 0:00:02]} Qxe4 {[%emt 0:00:01]} 60. h6 {[%emt 0:00:01]} Qh7 {[%emt 0:00:05]} 61. Qf2+ {[%emt 0:00:03]} (61. Qxe5 Qxh6+ 62. Kg3 Qg6+ 63. Kf4 Qf7+ 64. Ke4 Kb7 $14) 61... Kb7 {[%emt 0:00:02]} 62. Qf6 {[%emt 0:00:02]} Kb6 $1 {[%emt 0:00:03]} 63. Qg7 {[%emt 0:00:02]} (63. Qxe5 Qxh6+ 64. Kg3 Qg6+ 65. Kf4 Qf7+ 66. Ke4 Kb7 $14) (63. Qd8+ $142 Kb7 64. Qf8 Qe4 65. Qe7+ Kb6 66. h7 Qf4+ 67. Kh3 Qf5+ 68. g4 Qf1+ 69. Kh4) 63... Qe4 $18 {[%emt 0:00:02]} 64. Qg5 {[%emt 0:00:02]} Qh7 {[%emt 0:00:03]} 65. Kh3 {[%emt 0:00:02]} (65. Qxe5 Qxh6+ 66. Kg3 Qf8 $14) (65. Qd8+ $142 Kb7 66. Qf8) 65... e4 {[%emt 0:00:02]} 66. a5+ {[%emt 0:00:03]} 1-0

[Event "American Cup Blitz 2024"]
[Site "Saint Louis"]
[Date "2024.03.21"]
[Round "3.10"]
[White "Rosen, Eric"]
[Black "Tang, Zoey"]
[Result "1-0"]
[ECO "A18"]
[WhiteElo "2361"]
[BlackElo "2253"]
[Annotator "TA"]
[PlyCount "113"]
[EventDate "2024.03.21"]
[EventType "swiss"]
[EventCountry "USA"]
[SourceTitle "playchess.com"]
[Source "ChessBase"]
[SourceQuality "1"]
[TimeControl "180+2"]

{[%evp 11,113,13,22,33,25,16,66,30,40,35,42,22,33,33,105,52,83,-14,47,50,95,101,100,81,88,95,120,97,216,89,132,0,79,94,93,-31,145,0,-2,-18,-25,-64,0,-6,130,141,127,107,145,96,218,58,188,199,225,171,162,165,199,202,197,175,170,176,313,291,451,458,473,466,897,883,886,865,774,769,2727,2335,2870,1851,29954,29942,3340,1822,6119,3872,3303,3062,29974,2518,2409,2206,2231,2062,29986,29980,29980,29981,29981,29982,29982,29983,29985,29984]} 1. c4 {[%emt 0:00:02]} Nf6 {[%emt 0:00:04]} 2. Nc3 {[%emt 0:00:01]} e6 {[%emt 0:00:01]} 3. e4 {[%emt 0:00:01]} d5 {[%emt 0:00:05]} 4. cxd5 {[%emt 0:00:02]} exd5 {[%emt 0:00:01]} 5. e5 {[%emt 0:00:01]} Ne4 {[%emt 0:00:01]} 6. Nf3 {[%emt 0:00:12]} Nxc3 {[%emt 0:00:24]} 7. dxc3 {[%emt 0:00:01]} Be7 {[%emt 0:00:02] Against Bg5} 8. Bd3 {[%emt 0:00:02]} O-O {[%emt 0:00:07]} (8... c5 $11) 9. h3 {[%emt 0:00:08]} c5 {[%emt 0:00:04]} 10. O-O {[%emt 0:00:01]} Nc6 {[%emt 0:00:02]} 11. Re1 {[%emt 0:00:01]} Be6 {[%emt 0:00:10]} 12. Bf4 {[%emt 0:00:02]} h6 {[%emt 0:00:03]} (12... Rc8 $14) 13. Qd2 {[%emt 0:00:07]} (13. Bc2 $16) 13... d4 {[%emt 0:00:09]} 14. c4 {[%emt 0:00:16]} (14. Qe2 $16) 14... Nb4 {[%emt 0:00:34]} (14... Qc8 $11) 15. Bb1 $14 {[%emt 0:00:27]} Re8 {[%emt 0:00:49][%cal Oe7f8]} 16. a3 {[%emt 0:00:11]} Nc6 {[%emt 0:00:02][%cal Oe7f8]} 17. Qd3 {[%emt 0:00:12]} g6 {[%emt 0:00:12]} 18. Bxh6 {[%emt 0:00:02]} Na5 {[%emt 0:00:15]} 19. Ba2 {[%emt 0:00:14]} Qb6 {[%emt 0:00:03]} (19... a6 $16) 20. Qe2 {[%emt 0:00:56]} (20. Ng5 $1 $18) 20... Rad8 {[%emt 0:00:05]} 21. Red1 {[%emt 0:00:08]} (21. Rac1 $16) 21... Bf5 {[%emt 0:00:06]} (21... d3 $11 22. Qe4 (22. Rxd3 Rxd3 23. Qxd3 Qxb2 $17) 22... Qxb2) 22. g4 $16 {[%emt 0:00:11]} Be6 {[%emt 0:00:02][%cal Od4d3]} 23. Ng5 {[%emt 0:00:03]} (23. b3 $16) 23... Qc6 $2 {[%emt 0:00:07]} (23... d3 $1 $15 {stays ahead.} 24. Qe3 (24. Rxd3 $2 Rxd3 25. Qxd3 Bxg5 $19) 24... Nxc4 (24... Qxb2 25. Nxe6 fxe6 26. Qe4 $11) 25. Bxc4 Bxc4) 24. Nxe6 {[%emt 0:00:10]} ({Better is} 24. Qd3 $16) 24... Qxe6 $11 {[%emt 0:00:02]} 25. Bf4 {[%emt 0:00:01][%cal Ob2b4]} Nc6 {[%emt 0:00:03]} 26. Bb1 {[%emt 0:00:06]} Bf8 {[%emt 0:00:02]} (26... Bf6 $15 27. Qf3 Nxe5 28. Bxe5 Qxe5 (28... Bxe5 29. Bd3 $15)) 27. Re1 {[%emt 0:00:07] [#]} d3 {[%emt 0:00:03]} 28. Bxd3 $16 {[%emt 0:00:02]} Nd4 {[%emt 0:00:01]} 29. Qe4 {[%emt 0:00:01]} Bg7 {[%emt 0:00:06]} 30. Rad1 {[%emt 0:00:01]} ({White should try} 30. Bg5) 30... b6 {[%emt 0:00:02]} (30... Bxe5 $16 {keeps fighting.} 31. Bxe5 Qxe5) 31. b4 $2 {[%emt 0:00:01]} (31. Bg5 $18) 31... Rd7 {[%emt 0:00:06]} ({Black should play} 31... Bxe5 $14 32. Kf1 (32. Bxe5 Qxe5 33. Qxe5 Rxe5 $11) 32... Bxf4 33. Qxf4 Qc8) 32. Bg3 {[%emt 0:00:03]} Qc6 {[%emt 0:00:05]} 33. Qxc6 {[%emt 0:00:06]} Nxc6 {[%emt 0:00:01]} 34. bxc5 {[%emt 0:00:06] And now Be4 would win.} bxc5 {[%emt 0:00:02]} 35. f4 {[%emt 0:00:01]} Red8 {[%emt 0:00:03]} 36. Bc2 {[%emt 0:00:00] aiming for Rxd7.} Nd4 {[%emt 0:00:01] [#]} 37. Ba4 $1 {[%emt 0:00:05]} ({Resist} 37. Be4 $6 Ne2+ 38. Rxe2 Rxd1+ 39. Kf2 R8d2 $11) 37... Nf3+ {[%emt 0:00:02]} (37... Rb7 $142 38. Kf1 Rb2) 38. Kf2 $18 {[%emt 0:00:01]} Nxe1 {[%emt 0:00:02]} (38... Rxd1 $142 39. Rxd1 Rxd1 40. Bxd1 Nd2) 39. Rxd7 {[%emt 0:00:02]} Rxd7 {[%emt 0:00:01]} 40. Bxd7 {[%emt 0:00:01][%mdl 4096] Endgame. KBB-KBN} Nd3+ {[%emt 0:00:02]} (40... Nc2 $142 41. a4 Nb4) 41. Ke3 {[%emt 0:00:01]} Nb2 {[%emt 0:00:01]} 42. Bb5 {[%emt 0:00:03]} f6 {[%emt 0:00:03]} 43. e6 {[%emt 0:00:03] White threatens e7 and mate.} Bf8 {[%emt 0:00:02]} 44. f5 {[%emt 0:00:01]} gxf5 {[%emt 0:00:01]} 45. gxf5 {[%emt 0:00:01] Kd2 is the strong threat.} Bh6+ {[%emt 0:00:03]} 46. Ke2 {[%emt 0:00:02]} Bf8 {[%emt 0:00:04]} 47. Bf2 {[%emt 0:00:01] Threatens to win with Be1.} a6 {[%emt 0:00:05]} 48. Bxa6 {[%emt 0:00:03] Bb5 would kill now.} Na4 {[%emt 0:00:01]} 49. Be1 {[%emt 0:00:05]} Nb6 {[%emt 0:00:04]} 50. Bb5 {[%emt 0:00:01]} (50. Ba5 $142 Na4 51. Bb5 Kh8 52. Bxa4 Be7 53. Bb5 Kh7 54. a4 Bd6 55. Bc7) 50... Bd6 {[%emt 0:00:02]} 51. a4 {[%emt 0:00:01]} Nc8 {[%emt 0:00:02]} 52. a5 {[%emt 0:00:01]} Na7 {[%emt 0:00:01]} 53. Bd7 {[%emt 0:00:02]} Kf8 {[%emt 0:00:02]} 54. Bd2 {[%emt 0:00:01]} Ke7 {[%emt 0:00:01]} 55. a6 {[%emt 0:00:00]} Bc7 {[%emt 0:00:02]} 56. h4 {[%emt 0:00:01]} Bd6 {[%emt 0:00:02]} 57. h5 {[%emt 0:00:01]} 1-0